bitfinex-derivatives/quotes_SOLF0:USTF0_20260121
["timestamp","ask_amount","ask_price","bid_price","bid_amount"]
[1769027679344,3.14792221,130.63,130.51,107.3599]
[1769027679946,3.14792221,130.6,130.5,107.3684]
[1769027680747,3.14792221,130.6,130.51,6.9014]
[1769027681539,3.14792221,130.6,130.52,6.9011]
[1769027682942,10.04502221,130.6,130.52,6.9011]
[1769027684247,10.04502221,130.6,130.53,6.9006]
[1769027684446,299.01863275,130.62,130.51,107.3609]
[1769027684651,299.01863275,130.62,130.49,107.3738]
[1769027684652,3.14792221,130.61,130.49,107.3738]
[1769027684852,3.14792221,130.61,130.5,6.9019]
[1769027685450,10.04612221,130.58,130.48,107.3859]
[1769027686949,10.04612221,130.58,130.51,6.9018]
[1769027687446,3.14792221,130.58,130.52,6.9011]
[1769027687747,3.14792221,130.58,130.48,107.3859]
[1769027688050,6.8975,130.6,130.52,6.9013]
[1769027688252,6.8975,130.6,130.5,107.3702]
[1769027688640,10.04542221,130.6,130.5,107.3702]
[1769027689745,3.14792221,130.65,130.49,107.379]
[1769027689950,3.14792221,130.64,130.53,107.3456]
[1769027690649,3.14792221,130.64,130.56,6.899]
[1769027691346,10.04162221,130.67,130.56,107.3178]
[1769027691949,10.04162221,130.67,130.59,6.8974]
[1769027692744,10.04202221,130.66,130.57,6.8985]
[1769027693450,3.14792221,130.66,130.58,6.8978]
[1769027695645,10.04202221,130.66,130.58,6.8978]
[1769027697845,10.04262221,130.65,130.56,6.8989]
[1769027698049,3.14792221,130.65,130.55,107.3277]
[1769027698256,3.14792221,130.65,130.58,6.8981]
[1769027698556,3.14792221,130.65,130.56,107.3183]
[1769027698751,3.14792221,130.65,130.54,107.3339]
[1769027700154,3.13725847,130.63,130.52,107.3521]
[1769027700458,3.13725847,130.65,130.53,107.3435]
[1769027701650,3.28157879,130.63,130.51,107.3576]
[1769027701854,3.28157879,130.62,130.5,107.3706]
[1769027702954,6.8966,130.61,130.53,6.9007]
[1769027703152,3.28157879,130.61,130.49,107.3757]
[1769027703351,3.28157879,130.61,130.5,107.3703]
[1769027703551,6.8971,130.6,130.53,6.9007]
[1769027704460,10.17867879,130.6,130.53,6.9007]
[1769027704663,3.28157879,130.58,130.51,6.9016]
[1769027704856,3.28157879,130.58,130.45,6.15071054]
[1769027705558,6.8992,130.56,130.49,6.9028]
[1769027706868,10.17987879,130.58,130.5,6.902]
[1769027707156,6.8983,130.58,130.48,107.3833]
[1769027708064,6.8983,130.58,130.51,6.9018]
[1769027711759,3.28157879,130.59,130.52,6.9012]
[1769027712861,5.78846953,130.59,130.52,6.9012]
[1769027713158,3.28157879,130.58,130.49,2.50689074]
[1769027713958,10.17977879,130.58,130.51,6.9018]
[1769027714157,3.28157879,130.58,130.49,2.50689074]
[1769027715053,5.78846953,130.58,130.49,2.50689074]
[1769027715269,5.78846953,130.58,130.52,6.9012]
[1769027716167,12.68666953,130.58,130.49,2.50689074]
[1769027717176,3.28157879,130.57,130.48,109.89019074]
[1769027717468,5.78846953,130.52,130.42,109.93809074]
[1769027717764,2.50689074,130.5,130.4,107.4476]
[1769027717966,5.78846953,130.5,130.44,6.9055]
[1769027718369,12.69096953,130.5,130.4,107.4476]
[1769027718564,5.78846953,130.5,130.39,2.50689074]
[1769027718773,2.50689074,130.49,130.4,107.4528]
[1769027719363,2.50689074,130.49,130.44,6.9055]
[1769027719563,2.50689074,130.49,130.41,107.4449]
[1769027719765,5.78846953,130.53,130.43,2.50689074]
[1769027719972,2.50689074,130.52,130.46,6.9044]
[1769027720477,2.50689074,130.54,130.44,107.4162]
[1769027720772,2.50689074,130.54,130.48,6.9034]
[1769027720973,3.28157879,130.55,130.48,6.9034]
[1769027721673,3.28157879,130.55,130.49,6.9028]
[1769027721875,6.8989,130.57,130.47,107.3921]
[1769027722773,3.28157879,130.58,130.48,107.3843]
[1769027723165,3.28157879,130.61,130.5,107.3705]
[1769027723365,10.17847879,130.61,130.51,107.3623]
[1769027723773,3.28157879,130.6,130.5,107.3705]
[1769027724479,3.28157879,130.59,130.47,107.3921]
[1769027725874,6.8982,130.58,130.5,6.9021]
[1769027726175,10.17977879,130.58,130.5,6.9021]
[1769027726373,3.28157879,130.58,130.48,107.3847]
[1769027726578,3.28157879,130.58,130.52,6.9012]
[1769027728469,3.28157879,130.58,130.51,6.9017]
[1769027730180,3.28157879,130.58,130.52,6.9013]
[1769027730480,10.17847879,130.61,130.51,107.3614]
[1769027730680,10.17847879,130.61,130.55,6.8996]
[1769027730681,3.28157879,130.61,130.55,6.8996]
[1769027731082,3.28157879,130.61,130.5,107.3693]
[1769027731472,10.17817879,130.61,130.51,107.3609]
[1769027731674,10.17817879,130.61,130.53,6.9007]
[1769027732379,3.32660273,130.6,130.53,6.9007]
[1769027732577,10.22380273,130.6,130.53,6.9007]
[1769027732779,3.32660273,130.59,130.51,6.9014]
[1769027733372,3.32660273,130.62,130.51,107.3598]
[1769027733585,3.32660273,130.62,130.52,107.3514]
[1769027734080,10.22260273,130.62,130.53,6.9003]
[1769027734277,3.32660273,130.61,130.51,107.3598]
[1769027735085,3.32660273,130.6,130.5,107.3664]
[1769027735871,3.32660273,130.6,130.53,6.9007]
[1769027736268,3.32660273,130.59,130.49,107.3742]
[1769027736472,3.32660273,130.59,130.51,6.9018]
[1769027736682,3.32660273,130.59,130.48,107.3868]
[1769027737189,3.32660273,130.59,130.51,6.9018]
[1769027738882,6.8982,130.58,130.51,6.9018]
[1769027739876,10.22480273,130.58,130.51,6.9018]
[1769027740785,10.22480273,130.58,130.48,107.3868]
[1769027741888,289.78,130.6,130.45,107.4061]
[1769027741889,3.32660273,130.57,130.45,107.4061]
[1769027742193,3.32660273,130.56,130.44,107.4173]
[1769027742489,107.3159,130.57,130.39,107.4571]
[1769027742490,3.32660273,130.52,130.39,107.4571]
[1769027742784,3.32660273,130.5,130.39,107.4571]
[1769027742977,3.32660273,130.49,130.41,6.9067]
[1769027743181,3.32660273,130.49,130.38,107.466]
[1769027744084,3.32660273,130.47,130.36,107.4804]
[1769027744488,3.32660273,130.47,130.37,107.4774]
[1769027745487,3.32660273,130.47,130.4,6.9075]
[1769027747693,10.22930273,130.5,130.41,6.907]
[1769027747992,3.32660273,130.49,130.41,6.907]
[1769027748190,3.32660273,130.49,130.42,6.9065]
[1769027748399,3.32660273,130.51,130.4,107.4483]
[1769027748583,3.32660273,130.54,130.42,107.4346]
[1769027748790,3.32660273,130.54,130.45,6.9049]
[1769027749299,3.32660273,130.54,130.43,107.4251]
[1769027749589,10.22700273,130.54,130.46,6.9044]
[1769027749987,3.32660273,130.51,130.36,107.4798]
[1769027750184,3.32660273,130.49,130.41,6.9069]
[1769027751001,3.32660273,130.49,130.42,6.9065]
[1769027754396,3.32660273,130.49,130.39,107.4614]
[1769027754397,10.22810273,130.52,130.43,6.9057]
[1769027754596,3.32660273,130.52,130.43,6.9057]
[1769027755100,10.22940273,130.5,130.41,6.907]
[1769027755298,3.32660273,130.53,130.41,107.4411]
[1769027756500,3.32660273,130.53,130.45,6.9049]
[1769027757905,10.22750273,130.53,130.45,6.9049]
[1769027758406,10.22750273,130.53,130.46,6.9044]
[1769027759804,10.1866257,130.52,130.44,6.9053]
[1769027759996,3.2852257,130.51,130.4,107.4505]
[1769027760701,10.1882257,130.49,130.41,6.9069]
[1769027760901,10.1882257,130.49,130.39,107.4612]
[1769027761204,3.12721109,130.53,130.42,107.4361]
[1769027761397,10.02831109,130.53,130.45,6.905]
[1769027761705,3.12721109,130.52,130.45,6.905]
[1769027762301,3.12721109,130.51,130.43,6.9056]
[1769027762503,3.12721109,130.51,130.41,107.4422]
[1769027763306,10.02911109,130.51,130.41,107.4422]
[1769027763803,10.02911109,130.51,130.39,107.4612]
[1769027763804,6.9024,130.5,130.43,6.906]
[1769027764601,3.12721109,130.51,130.44,6.9054]
[1769027764904,6.9016,130.52,130.42,107.434]
[1769027765105,10.02881109,130.52,130.42,107.434]
[1769027766009,10.02881109,130.52,130.45,6.9049]
[1769027766608,6.9006,130.54,130.46,6.9043]
[1769027766911,3.12721109,130.54,130.46,6.9043]
[1769027767607,10.02901109,130.51,130.44,6.9051]
[1769027768207,3.12721109,130.54,130.41,107.4423]
[1769027768504,3.12721109,130.54,130.44,107.4181]
[1769027768909,3.12721109,130.54,130.43,107.4253]
[1769027769710,10.02801109,130.53,130.45,6.905]
[1769027773622,10.02801109,130.53,130.46,6.9045]
[1769027774525,14.5651,130.55,130.48,6.9032]
[1769027774819,3.12721109,130.57,130.46,107.4012]
[1769027775221,10.02601109,130.57,130.46,107.4012]
[1769027775722,3.12721109,130.57,130.47,107.3936]
[1769027776616,3.12721109,130.57,130.49,6.9028]
[1769027778025,10.02601109,130.57,130.49,6.9028]
[1769027778519,3.12721109,130.57,130.49,6.9028]
[1769027781024,10.02601109,130.57,130.49,6.9028]
[1769027781924,6.8993,130.56,130.47,6.9035]
[1769027782129,3.12721109,130.55,130.43,107.4281]
[1769027782625,3.12721109,130.55,130.46,6.9044]
[1769027782814,10.02721109,130.55,130.44,107.4147]
[1769027783325,3.12721109,130.55,130.47,6.9036]
[1769027784222,6.9003,130.54,130.45,6.9045]
[1769027784525,6.9003,130.54,130.44,107.4147]
[1769027786030,6.9003,130.54,130.46,6.9044]
[1769027787019,6.8997,130.56,130.45,107.4118]
[1769027787529,10.02591109,130.58,130.47,107.3922]
[1769027789029,10.02591109,130.58,130.51,6.9017]
[1769027789332,6.8987,130.58,130.51,6.9017]
[1769027790532,10.02591109,130.57,130.49,6.9024]
[1769027791136,10.02591109,130.57,130.5,6.9022]
[1769027792235,10.20225312,130.55,130.48,6.9031]
[1769027792436,3.30245312,130.54,130.48,6.9031]
[1769027793335,6.8998,130.55,130.48,6.9031]
[1769027794843,10.20225312,130.55,130.48,6.9031]
[1769027795943,3.30245312,130.54,130.48,6.9031]
[1769027796132,3.30245312,130.53,130.44,107.4147]
[1769027796936,3.30245312,130.53,130.47,6.9039]
[1769027798145,10.20345312,130.53,130.45,6.9045]
[1769027798842,3.30245312,130.52,130.45,6.9045]
[1769027799838,3.30245312,130.51,130.45,6.9045]
[1769027806341,3.30245312,130.5,130.43,6.9056]
[1769027808848,5.81280268,130.5,130.43,6.9056]
[1769027809242,5.81280268,130.5,130.44,6.9054]
[1769027809748,12.71520268,130.5,130.42,6.9061]
[1769027810043,12.71520268,130.5,130.4,109.95824956]
[1769027811047,12.71520268,130.5,130.43,6.9058]
[1769027812353,10.20535312,130.49,130.43,6.9058]
[1769027812552,5.81280268,130.48,130.43,6.9058]
[1769027813050,2.51034956,130.48,130.43,6.9058]
[1769027813454,12.71520268,130.5,130.43,6.9058]
[1769027815350,2.51034956,130.48,130.43,6.9058]
[1769027815553,5.81280268,130.48,130.43,6.9058]
[1769027819150,5.81280268,130.48,130.39,109.96654956]
[1769027819351,3.11136755,130.47,130.37,109.98294956]
[1769027819655,3.11136755,130.43,130.34,107.4996]
[1769027819847,2.51034956,130.44,130.35,107.4937]
[1769027820446,5.62171711,130.43,130.34,107.5026]
[1769027820852,2.51034956,130.43,130.35,107.491]
[1769027821156,2.51034956,130.45,130.37,107.4773]
[1769027821549,5.95381888,130.45,130.35,2.51034956]
[1769027821756,5.95381888,130.45,130.35,110.00124956]
[1769027822354,289.96,130.48,130.37,109.98394956]
[1769027822355,2.51034956,130.47,130.37,109.98394956]
[1769027822554,2.51034956,130.47,130.38,107.4667]
[1769027823058,3.44346932,130.48,130.39,109.96804956]
[1769027823355,5.95381888,130.5,130.41,109.95314956]
[1769027823557,5.95381888,130.5,130.41,2.51034956]
[1769027824054,5.95381888,130.5,130.4,107.4521]
[1769027824055,12.85631888,130.5,130.4,107.4521]
[1769027824653,12.85631888,130.5,130.43,6.906]
[1769027826360,3.44346932,130.49,130.41,6.9067]
[1769027826654,3.44346932,130.47,130.41,6.9067]
[1769027827355,3.44346932,130.47,130.39,6.9078]
[1769027827557,3.44346932,130.47,130.38,107.4667]
[1769027828253,9.41384956,130.48,130.41,6.907]
[1769027828452,12.85731888,130.48,130.41,6.907]
[1769027829060,3.44346932,130.47,130.41,6.907]
[1769027829654,3.44346932,130.47,130.38,107.4667]
[1769027829957,3.44346932,130.45,130.39,6.9077]
[1769027830259,3.44346932,130.45,130.36,107.481]
[1769027830455,3.44346932,130.45,130.38,6.9086]
[1769027831461,5.95381888,130.44,130.35,107.4882]
[1769027831860,5.95381888,130.44,130.35,109.99854956]
[1769027832465,3.44346932,130.43,130.34,107.498]
[1769027832663,3.44346932,130.43,130.33,110.01674956]
[1769027832853,5.95381888,130.42,130.33,2.51034956]
[1769027833156,5.95381888,130.42,130.3,107.5298]
[1769027833157,3.44346932,130.39,130.31,110.03324956]
[1769027833351,5.95381888,130.41,130.32,107.5168]
[1769027834157,3.44346932,130.4,130.33,6.911]
[1769027834552,2.51034956,130.39,130.33,6.911]
[1769027834861,2.51034956,130.37,130.31,6.9121]
[1769027835063,5.95381888,130.37,130.31,6.9121]
[1769027835263,2.51034956,130.37,130.31,6.9121]
[1769027835455,5.95381888,130.39,130.32,6.9119]
[1769027835654,3.44346932,130.38,130.32,6.9119]
[1769027837262,3.44346932,130.38,130.29,2.51034956]
[1769027838366,3.44346932,130.38,130.32,6.9117]
[1769027839775,2.51034956,130.39,130.33,6.9113]
[1769027841573,12.86101888,130.41,130.33,6.9113]
[1769027841780,12.86101888,130.41,130.3,107.534]
[1769027841781,3.44346932,130.38,130.29,107.5405]
[1769027841981,5.95381888,130.37,130.31,6.9119]
[1769027843581,5.95381888,130.37,130.32,6.9117]
[1769027843582,3.44346932,130.37,130.32,6.9117]
[1769027843884,3.44346932,130.4,130.31,110.03764956]
[1769027844582,5.95381888,130.43,130.33,2.51034956]
[1769027845183,5.95381888,130.43,130.34,107.5016]
[1769027845492,3.44346932,130.42,130.36,6.9097]
[1769027845781,2.51034956,130.44,130.34,110.00824956]
[1769027845979,5.95381888,130.44,130.34,110.00824956]
[1769027846682,5.95381888,130.44,130.37,6.9092]
[1769027847284,5.95381888,130.42,130.33,107.5079]
[1769027847682,2.51034956,130.44,130.37,6.9092]
[1769027848181,5.95381888,130.44,130.37,6.9092]
[1769027848987,3.44346932,130.44,130.37,6.9092]
[1769027849782,3.44346932,130.44,130.38,6.9085]
[1769027851085,2.51235476,130.45,130.39,6.9078]
[1769027851383,3.2560499,130.46,130.37,109.98775476]
[1769027851590,3.2560499,130.48,130.39,2.51235476]
[1769027852194,3.2560499,130.48,130.41,6.907]
[1769027852393,3.2560499,130.48,130.4,107.4532]
[1769027853092,10.1588499,130.5,130.4,107.4532]
[1769027853676,3.2560499,130.53,130.43,107.4267]
[1769027854681,3.2560499,130.52,130.44,6.9051]
[1769027854884,3.2560499,130.52,130.43,107.4267]
[1769027856093,3.2560499,130.52,130.45,6.9049]
[1769027858691,3.2560499,130.54,130.44,107.4172]
[1769027859388,3.2560499,130.53,130.43,107.4267]
[1769027860994,3.2560499,130.53,130.46,6.9042]
[1769027862191,3.2560499,130.52,130.46,6.9042]
[1769027863291,10.1561499,130.55,130.46,6.9042]
[1769027863488,3.2560499,130.54,130.46,6.9042]
[1769027864704,3.2560499,130.52,130.44,6.9052]
[1769027865495,3.2560499,130.52,130.45,6.905]
[1769027867692,3.2560499,130.52,130.46,6.9044]
[1769027867998,6.9021,130.51,130.41,107.4383]
[1769027868299,3.2560499,130.5,130.41,107.4383]
[1769027868599,3.2560499,130.49,130.42,6.9062]
[1769027869600,3.2560499,130.48,130.37,107.4724]
[1769027869797,3.2560499,130.48,130.36,107.4823]
[1769027870899,6.9046,130.46,130.39,6.9081]
[1769027872001,10.1606499,130.46,130.39,6.9081]
[1769027872601,3.2560499,130.45,130.36,107.4823]
[1769027872801,3.2560499,130.44,130.34,107.4995]
[1769027873002,5.76841281,130.44,130.35,2.51236291]
[1769027873599,12.67421281,130.44,130.36,6.9095]
[1769027873799,3.2560499,130.43,130.36,6.9095]
[1769027873994,3.2560499,130.41,130.32,107.5144]
[1769027874193,2.51236291,130.42,130.33,110.02306291]
[1769027876003,2.51236291,130.42,130.36,6.9097]
[1769027876204,5.76841281,130.44,130.34,107.4995]
[1769027876504,5.76841281,130.47,130.39,6.9081]
[1769027877201,3.2560499,130.46,130.39,6.9081]
[1769027878894,3.2560499,130.49,130.41,6.9071]
[1769027879102,3.2560499,130.49,130.38,107.4683]
[1769027879103,5.76841281,130.49,130.39,109.97106291]
[1769027880002,5.76841281,130.49,130.42,6.9064]
[1769027880199,3.2560499,130.49,130.41,2.51236291]
[1769027880705,3.44022313,130.48,130.41,2.51236291]
[1769027881400,3.44022313,130.48,130.39,2.51236291]
[1769027882904,10.34372313,130.48,130.41,6.9071]
[1769027884307,3.28693663,130.47,130.41,6.9071]
[1769027884712,10.19093663,130.47,130.39,2.51236291]
[1769027885408,3.28693663,130.47,130.41,6.9071]
[1769027886506,2.51236291,130.49,130.39,2.51236291]
[1769027886507,9.41526291,130.49,130.42,6.9064]
[1769027886705,6.9029,130.49,130.42,6.9064]
[1769027887000,5.79929954,130.49,130.42,6.9064]
[1769027887211,3.28693663,130.49,130.42,6.9064]
[1769027887414,5.79929954,130.51,130.43,6.9059]
[1769027888005,12.70159954,130.51,130.44,6.9054]
[1769027888901,10.18923663,130.51,130.44,6.9054]
[1769027890815,3.28693663,130.5,130.44,6.9054]
[1769027891010,3.28693663,130.49,130.42,6.9061]
[1769027891700,3.28693663,130.47,130.41,6.907]
[1769027896714,5.79929954,130.49,130.42,6.9061]
[1769027896917,107.3161,130.57,130.41,2.51236291]
[1769027896918,5.79929954,130.51,130.41,2.51236291]
[1769027897320,6.9016,130.52,130.43,2.51236291]
[1769027897512,5.79929954,130.55,130.45,2.51236291]
[1769027898107,3.28693663,130.55,130.48,6.9033]
[1769027900013,10.18673663,130.55,130.48,6.9033]
[1769027902516,3.28693663,130.54,130.48,6.9033]
[1769027902923,6.8998,130.55,130.48,6.9033]
[1769027904024,10.18603663,130.57,130.49,2.51236291]
[1769027904520,10.18623663,130.56,130.47,109.90256291]
[1769027904729,10.18623663,130.56,130.47,2.51236291]
[1769027904919,12.69859954,130.56,130.47,2.51236291]
[1769027905114,12.69859954,130.56,130.45,109.92106291]
[1769027905115,10.18673663,130.55,130.45,109.92106291]
[1769027906222,406.98297008,130.58,130.45,2.51236291]
[1769027906223,12.69959954,130.54,130.45,2.51236291]
[1769027907119,12.69959954,130.54,130.39,429.8336]
[1769027907120,300.27836769,130.59,130.47,109.90406291]
[1769027907324,3.28693663,130.59,130.51,2.51236291]
[1769027908517,3.28693663,130.59,130.49,109.88826291]
[1769027908920,5.79355308,130.59,130.51,6.9016]
[1769027909613,3.28693663,130.56,130.5,6.9022]
[1769027910124,4.62029551,130.62,130.44,23.56518858]
[1769027910333,3.28693663,130.62,130.53,2.50661645]
[1769027910519,2.50661645,130.64,130.55,2.50661645]
[1769027910927,5.79355308,130.64,130.55,2.50661645]
[1769027911126,3.22455257,130.63,130.55,2.50661645]
[1769027911321,3.22455257,130.63,130.54,6.9]
[1769027912522,5.73116902,130.62,130.54,6.9]
[1769027912730,3.22455257,130.62,130.54,6.9]
[1769027913528,397.1362,130.67,130.53,109.84981645]
[1769027913529,289.9,130.67,130.53,109.84981645]
[1769027913827,3.22455257,130.66,130.59,2.50661645]
[1769027914030,3.22455257,130.66,130.57,2.50661645]
[1769027914227,5.73116902,130.65,130.56,6.8991]
[1769027914729,5.73116902,130.65,130.57,2.50661645]
[1769027914929,3.22455257,130.67,130.56,107.32]
[1769027915329,3.22455257,130.67,130.57,107.3122]
[1769027915734,3.22455257,130.67,130.58,107.3002]
[1769027916231,3.22455257,130.67,130.61,6.8963]
[1769027916426,3.22455257,130.67,130.57,107.3122]
[1769027916829,3.22455257,130.66,130.55,107.326]
[1769027917329,6.8943,130.66,130.58,6.8979]
[1769027917632,3.22455257,130.65,130.55,107.326]
[1769027917832,3.22455257,130.65,130.54,107.3379]
[1769027918235,3.22455257,130.63,130.54,6.8999]
[1769027918734,6.8962,130.62,130.54,6.8999]
[1769027918934,10.12075257,130.62,130.54,6.8999]
[1769027919236,6.8953,130.64,130.55,6.8995]
[1769027919436,10.11985257,130.64,130.53,107.3404]
[1769027919750,3.22455257,130.63,130.53,107.3404]
[1769027920138,3.22455257,130.63,130.55,6.8996]
[1769027923536,3.22455257,130.63,130.56,6.8991]
[1769027924933,10.11875257,130.66,130.57,6.8983]
[1769027925243,10.11875257,130.66,130.54,107.3345]
[1769027925244,10.11875257,130.66,130.55,107.3265]
[1769027925438,3.22455257,130.65,130.55,107.3265]
[1769027925742,10.11905257,130.65,130.58,6.8981]
[1769027926940,3.22455257,130.68,130.57,107.3126]
[1769027927945,10.11835257,130.67,130.6,6.897]
[1769027928144,3.22455257,130.66,130.6,6.897]
[1769027928345,3.22455257,130.66,130.58,107.3049]
[1769027928546,3.22455257,130.66,130.61,6.8965]
[1769027929743,3.22455257,130.66,130.59,6.8971]
[1769027931137,3.22455257,130.65,130.59,6.8971]
[1769027932536,3.22455257,130.67,130.6,6.897]
[1769027932946,3.22455257,130.67,130.61,6.8965]
[1769027933146,3.22455257,130.7,130.6,107.2885]
[1769027934945,2.50274548,130.69,130.63,6.8955]
[1769027935541,12.61909805,130.7,130.63,6.8955]
[1769027936351,3.22455257,130.69,130.61,6.8961]
[1769027936552,3.22455257,130.69,130.6,107.2885]
[1769027937052,3.22455257,130.69,130.62,6.896]
[1769027937249,5.72729805,130.68,130.62,6.896]
[1769027937753,5.72729805,130.68,130.59,107.2953]
[1769027937754,3.22455257,130.67,130.6,6.8967]
[1769027937952,2.50274548,130.66,130.6,6.8967]
[1769027939851,3.22404105,130.65,130.58,6.8977]
[1769027940055,3.22404105,130.65,130.56,107.3173]
[1769027940848,3.22404105,130.65,130.59,6.8976]
[1769027941055,5.72678653,130.64,130.55,2.50274548]
[1769027941652,5.72678653,130.64,130.53,107.3401]
[1769027941653,5.89286312,130.62,130.52,2.50274548]
[1769027941859,5.89286312,130.62,130.52,109.85434548]
[1769027942558,5.89286312,130.62,130.56,6.8991]
[1769027942757,3.39011764,130.66,130.55,107.3271]
[1769027942949,3.39011764,130.66,130.59,6.8976]
[1769027943964,10.28401764,130.66,130.59,6.8976]
[1769027947361,3.39011764,130.66,130.6,6.8968]
[1769027948271,10.28401764,130.66,130.56,109.82414548]
[1769027948565,2.50274548,130.67,130.58,2.50274548]
[1769027948759,5.89286312,130.69,130.58,109.80514548]
[1769027948963,6.8933,130.68,130.58,109.80514548]
[1769027949171,10.28341764,130.68,130.58,109.80514548]
[1769027949356,10.28351764,130.67,130.6,6.8966]
[1769027949871,3.39011764,130.67,130.58,109.80514548]
[1769027950162,3.39011764,130.67,130.61,6.896]
[1769027950559,12.78626312,130.67,130.61,6.896]
[1769027951064,12.78626312,130.67,130.58,109.80514548]
[1769027951065,9.39554548,130.69,130.6,2.50274548]
[1769027951255,3.39011764,130.7,130.6,109.78844548]
[1769027951660,2.50274548,130.71,130.62,2.50274548]
[1769027951860,3.39011764,130.73,130.64,109.75824548]
[1769027952263,3.39011764,130.73,130.65,6.894]
[1769027953853,6.8908,130.72,130.65,6.894]
[1769027954059,12.78366312,130.72,130.65,6.894]
[1769027954368,5.89286312,130.7,130.6,109.78844548]
[1769027955164,12.78486312,130.7,130.62,6.8957]
[1769027955373,12.78486312,130.7,130.6,109.78844548]
[1769027956867,10.28211764,130.7,130.63,6.8955]
[1769027957072,3.39011764,130.7,130.61,107.2795]
[1769027957370,7.05143106,130.72,130.6,107.2857]
[1769027957371,3.39011764,130.72,130.63,107.2636]
[1769027957569,3.39011764,130.72,130.64,107.2549]
[1769027958366,3.39011764,130.72,130.63,107.2636]
[1769027959972,3.39011764,130.72,130.66,6.8938]
[1769027960272,6.8902,130.73,130.66,6.8938]
[1769027960673,6.8902,130.73,130.67,6.8933]
[1769027960866,3.39011764,130.74,130.64,107.2508]
[1769027961572,3.39011764,130.74,130.67,6.8934]
[1769027962070,10.28011764,130.74,130.67,6.8934]
[1769027966478,6.8902,130.73,130.67,6.8934]
[1769027966773,10.28031764,130.73,130.67,6.8934]
[1769027966974,3.39011764,130.72,130.67,6.8934]
[1769027968575,10.28091764,130.72,130.65,6.894]
[1769027968776,3.39011764,130.71,130.65,6.894]
[1769027969776,3.39011764,130.71,130.58,127.24076189]
[1769027970174,3.39011764,130.69,130.58,107.3018]
[1769027971977,10.29030832,130.68,130.61,6.8961]
[1769027974986,3.39740832,130.65,130.55,107.3295]
[1769027976185,3.39740832,130.65,130.59,6.8976]
[1769027976988,5.90170755,130.65,130.59,6.8976]
[1769027978184,5.90170755,130.63,130.52,109.85279923]
[1769027978389,2.50429923,130.61,130.52,109.85279923]
[1769027978985,2.50429923,130.61,130.55,6.8996]
[1769027980277,5.90170755,130.61,130.52,107.3485]
[1769027980478,5.90170755,130.61,130.54,6.9001]
[1769027981084,5.90170755,130.61,130.53,107.3434]
[1769027981283,3.39740832,130.61,130.53,109.84769923]
[1769027981988,3.39740832,130.61,130.56,6.8991]
[1769027982184,2.50429923,130.63,130.54,107.3359]
[1769027982592,2.50429923,130.63,130.57,6.8986]
[1769027982786,5.90170755,130.63,130.54,107.3359]
[1769027983476,5.90170755,130.63,130.56,6.8991]
[1769027983677,5.90170755,130.61,130.52,107.3514]
[1769027984284,5.90170755,130.61,130.55,6.8997]
[1769027984485,5.90170755,130.61,130.53,107.3436]
[1769027985278,2.50429923,130.61,130.53,107.3436]
[1769027985792,2.50429923,130.61,130.54,6.8998]
[1769027985994,2.50429923,130.61,130.53,107.3436]
[1769027986685,2.50429923,130.61,130.55,6.8996]
[1769027988196,3.39740832,130.6,130.52,107.3514]
[1769027989795,2.50429923,130.61,130.55,6.8997]
[1769027990285,5.90170755,130.61,130.55,6.8997]
[1769027990790,12.79840755,130.61,130.52,107.3514]
[1769027991191,3.39740832,130.6,130.51,109.86349923]
[1769027991496,3.39740832,130.6,130.54,6.9001]
[1769027991697,3.39740832,130.58,130.5,107.3692]
[1769027992599,2.50429923,130.59,130.54,6.9002]
[1769027995293,6.8971,130.6,130.54,6.9002]
[1769027995492,10.29450832,130.6,130.54,6.9002]
[1769027996385,10.29450832,130.6,130.51,109.86429923]
[1769027996386,10.29450832,130.6,130.51,2.50429923]
[1769027997795,3.39740832,130.58,130.53,6.9007]
[1769027997996,3.39740832,130.58,130.49,109.87809923]
[1769027998197,3.39740832,130.58,130.48,109.88519923]
[1769027999003,10.29570832,130.58,130.51,6.9016]
[1769027999396,5.5973408,130.57,130.51,6.9016]
[1769028000195,3.09304157,130.57,130.48,109.88519923]
[1769028000397,3.09304157,130.56,130.48,109.88519923]
[1769028000604,107.2835,130.61,130.46,109.90249923]
[1769028000605,5.5973408,130.55,130.46,109.90249923]
[1769028000989,5.5973408,130.55,130.49,6.9026]
[1769028000990,12.4970408,130.55,130.49,6.9026]
[1769028001202,107.2997,130.59,130.46,109.90699923]